[Event "Early-Titled-Tuesday-Blitz-March-26-2024"]
[Site "Chess.com"]
[Date "2024.03.26"]
[Round "2"]
[White "Witik"]
[Black "Chessdude1987"]
[Result "1-0"]
[WhiteElo "2761"]
[BlackElo "2382"]
[TimeControl "180+1"]
[EndTime "8:17:39 PDT"]
[Termination "Witik won on time"]

1. d4 {[%clk 0:03:00]} 1... e6 {[%clk 0:03:00.1]} 2. Nf3 {[%clk 0:02:56.9]} 2...
f5 {[%clk 0:03:00]} 3. g3 {[%clk 0:02:54.6]} 3... Nf6 {[%clk 0:03:00.1]} 4. Bg2
{[%clk 0:02:54.8]} 4... d6 {[%clk 0:02:58.9]} 5. O-O {[%clk 0:02:47.4]} 5... Be7
{[%clk 0:02:59.1]} 6. b4 {[%clk 0:02:47.2]} 6... O-O {[%clk 0:02:56.5]} 7. c4
{[%clk 0:02:47.8]} 7... Ne4 {[%clk 0:02:50.2]} 8. Nfd2 {[%clk 0:02:42.6]} 8...
Nxd2 {[%clk 0:02:47.4]} 9. Bxd2 {[%clk 0:02:34.1]} 9... Bf6 {[%clk 0:02:47.3]}
10. Bc3 {[%clk 0:02:26.1]} 10... a5 {[%clk 0:02:36.9]} 11. b5 {[%clk 0:02:22.2]}
11... Qe8 {[%clk 0:02:30]} 12. e4 {[%clk 0:02:05.8]} 12... fxe4 {[%clk
0:02:27.9]} 13. Bxe4 {[%clk 0:01:53.9]} 13... e5 {[%clk 0:02:28.2]} 14. Qc2
{[%clk 0:01:43.3]} 14... exd4 {[%clk 0:02:01.2]} 15. Bxh7+ {[%clk 0:01:42.7]}
15... Kh8 {[%clk 0:02:01.3]} 16. Bg6 {[%clk 0:01:41]} 16... Qe5 {[%clk
0:02:00.7]} 17. Bb2 {[%clk 0:01:29.5]} 17... d3 {[%clk 0:01:22.3]} 18. Qd1
{[%clk 0:01:24.6]} 18... Qe2 {[%clk 0:01:02.6]} 19. Bxf6 {[%clk 0:01:18.3]}
19... Rxf6 {[%clk 0:00:53.9]} 20. Bxd3 {[%clk 0:01:14.6]} 20... Qxd1 {[%clk
0:00:48.7]} 21. Rxd1 {[%clk 0:01:15.1]} 21... Bg4 {[%clk 0:00:46.7]} 22. Re1
{[%clk 0:01:11.7]} 22... Nd7 {[%clk 0:00:46.8]} 23. Nc3 {[%clk 0:01:11.6]} 23...
Nc5 {[%clk 0:00:44.2]} 24. Bf1 {[%clk 0:00:56]} 24... Raf8 {[%clk 0:00:29.4]}
25. f4 {[%clk 0:00:55.7]} 25... c6 {[%clk 0:00:21.3]} 26. Bg2 {[%clk 0:00:46.6]}
26... cxb5 {[%clk 0:00:14.2]} 27. cxb5 {[%clk 0:00:42.8]} 27... Bf5 {[%clk
0:00:08.4]} 28. Rad1 {[%clk 0:00:39.1]} 28... Nd3 {[%clk 0:00:05.1]} 29. Re3
{[%clk 0:00:39.5]} 29... Nb4 {[%clk 0:00:04]} 30. a3 {[%clk 0:00:34.5]} 30...
Nc2 {[%clk 0:00:03.8]} 31. Re2 {[%clk 0:00:33.5]} 31... Nxa3 {[%clk 0:00:04]}
32. Red2 {[%clk 0:00:23.9]} 32... Rd8 {[%clk 0:00:03.1]} 33. Bxb7 {[%clk
0:00:22.5]} 33... Nc4 {[%clk 0:00:02.4]} 34. Rd4 {[%clk 0:00:22.7]} 34... Ne3
{[%clk 0:00:02.2]} 35. R1d2 {[%clk 0:00:22.5]} 35... a4 {[%clk 0:00:01]} 36.
Rxa4 {[%clk 0:00:20.9]} 1-0

[Event "Early-Titled-Tuesday-Blitz-March-26-2024"]
[Site "Chess.com"]
[Date "2024.03.26"]
[Round "2"]
[White "ZenBull"]
[Black "ChainedDowntohell"]
[Result "1/2-1/2"]
[WhiteElo "2283"]
[BlackElo "2505"]
[TimeControl "180+1"]
[EndTime "8:17:39 PDT"]
[Termination "Game drawn by repetition"]

1. c4 {[%clk 0:03:00.9]} 1... f5 {[%clk 0:02:54.8]} 2. g3 {[%clk 0:02:58.3]}
2... Nf6 {[%clk 0:02:54]} 3. Bg2 {[%clk 0:02:59.2]} 3... e6 {[%clk 0:02:50.9]}
4. d3 {[%clk 0:02:56.6]} 4... Be7 {[%clk 0:02:49.8]} 5. Nh3 {[%clk 0:02:54.5]}
5... O-O {[%clk 0:02:49.6]} 6. O-O {[%clk 0:02:54.8]} 6... c6 {[%clk 0:02:42.8]}
7. b3 {[%clk 0:02:51.2]} 7... d6 {[%clk 0:02:38.7]} 8. e4 {[%clk 0:02:48.5]}
8... fxe4 {[%clk 0:02:24.8]} 9. dxe4 {[%clk 0:02:46.8]} 9... e5 {[%clk
0:02:24.3]} 10. f3 {[%clk 0:02:31.5]} 10... Na6 {[%clk 0:02:23]} 11. Be3 {[%clk
0:02:28.3]} 11... d5 {[%clk 0:02:16.3]} 12. cxd5 {[%clk 0:02:23.8]} 12... cxd5
{[%clk 0:02:16.9]} 13. Nd2 {[%clk 0:02:08.7]} 13... d4 {[%clk 0:02:10.2]} 14.
Bf2 {[%clk 0:02:03.9]} 14... Bd7 {[%clk 0:01:51.8]} 15. Kh1 {[%clk 0:02:01.4]}
15... Bb5 {[%clk 0:01:44.1]} 16. Re1 {[%clk 0:01:59.4]} 16... Rc8 {[%clk
0:01:40.9]} 17. Rc1 {[%clk 0:01:58.8]} 17... Qa5 {[%clk 0:01:35.1]} 18. a4
{[%clk 0:01:55.9]} 18... Bd3 {[%clk 0:01:29.4]} 19. Bf1 {[%clk 0:01:48.9]} 19...
Bxf1 {[%clk 0:01:18.2]} 20. Rxf1 {[%clk 0:01:49.8]} 20... b5 {[%clk 0:01:14.3]}
21. axb5 {[%clk 0:01:45.4]} 21... Qxb5 {[%clk 0:01:15.2]} 22. Nc4 {[%clk
0:01:44.3]} 22... Nb4 {[%clk 0:01:04.7]} 23. Be1 {[%clk 0:01:33.5]} 23... Nc6
{[%clk 0:00:55.2]} 24. Nf2 {[%clk 0:01:31.8]} 24... Kh8 {[%clk 0:00:49.3]} 25.
Nd3 {[%clk 0:01:31.6]} 25... Nxe4 {[%clk 0:00:46.5]} 26. Qe2 {[%clk 0:01:27.6]}
26... Nc5 {[%clk 0:00:34.8]} 27. Ndxe5 {[%clk 0:01:14]} 27... Nxe5 {[%clk
0:00:28]} 28. Qxe5 {[%clk 0:01:12.5]} 28... Bf6 {[%clk 0:00:28.1]} 29. Qh5
{[%clk 0:01:05.3]} 29... g6 {[%clk 0:00:24.6]} 30. Qh3 {[%clk 0:01:00.3]} 30...
Nxb3 {[%clk 0:00:16.1]} 31. Nd6 {[%clk 0:00:57.6]} 31... Qxf1+ {[%clk 0:00:13]}
32. Qxf1 {[%clk 0:00:55.8]} 32... Rxc1 {[%clk 0:00:13.9]} 33. Kg2 {[%clk
0:00:52.7]} 33... Nc5 {[%clk 0:00:09]} 34. Qe2 {[%clk 0:00:48.5]} 34... d3
{[%clk 0:00:08.3]} 35. Qf2 {[%clk 0:00:41.4]} 35... Rc2 {[%clk 0:00:08.3]} 36.
Bd2 {[%clk 0:00:39.9]} 36... Nb3 {[%clk 0:00:06.4]} 37. Ne4 {[%clk 0:00:39.1]}
37... Nxd2 {[%clk 0:00:06.4]} 38. Nxd2 {[%clk 0:00:38.6]} 38... Bc3 {[%clk
0:00:05.6]} 39. Kh3 {[%clk 0:00:38.7]} 39... Bxd2 {[%clk 0:00:03.8]} 40. Qd4+
{[%clk 0:00:38.6]} 40... Kg8 {[%clk 0:00:01.9]} 41. Qd5+ {[%clk 0:00:38.5]}
41... Kh8 {[%clk 0:00:01.7]} 42. Qd4+ {[%clk 0:00:38.8]} 42... Kg8 {[%clk
0:00:01.9]} 43. Qd5+ {[%clk 0:00:39.2]} 43... Rf7 {[%clk 0:00:02.3]} 44. Qd8+
{[%clk 0:00:38.9]} 44... Kg7 {[%clk 0:00:01.9]} 45. Qd4+ {[%clk 0:00:38.8]}
45... Kh6 {[%clk 0:00:02.1]} 46. Qh4+ {[%clk 0:00:38.3]} 46... Kg7 {[%clk
0:00:02]} 47. Qd4+ {[%clk 0:00:38.5]} 47... Kg8 {[%clk 0:00:02.7]} 48. Qd8+
{[%clk 0:00:38.4]} 48... Rf8 {[%clk 0:00:03.2]} 49. Qd5+ {[%clk 0:00:38.1]}
1/2-1/2

[Event "Early-Titled-Tuesday-Blitz-March-26-2024"]
[Site "Chess.com"]
[Date "2024.03.26"]
[Round "2"]
[White "Veleamater"]
[Black "blitzking1729"]
[Result "1-0"]
[WhiteElo "2412"]
[BlackElo "2755"]
[TimeControl "180+1"]
[EndTime "8:17:43 PDT"]
[Termination "Veleamater won by checkmate"]

1. g3 {[%clk 0:03:00.9]} 1... Nf6 {[%clk 0:02:59.9]} 2. Bg2 {[%clk 0:03:00.1]}
2... e5 {[%clk 0:03:00.2]} 3. d3 {[%clk 0:03:00]} 3... d5 {[%clk 0:03:00.3]} 4.
Nf3 {[%clk 0:03:00.6]} 4... Bd6 {[%clk 0:03:00.6]} 5. O-O {[%clk 0:03:01.1]}
5... O-O {[%clk 0:03:00.9]} 6. Nc3 {[%clk 0:03:01.7]} 6... d4 {[%clk 0:03:00.2]}
7. Ne4 {[%clk 0:03:01.3]} 7... Nxe4 {[%clk 0:02:59.9]} 8. dxe4 {[%clk
0:03:02.2]} 8... Nc6 {[%clk 0:02:57.8]} 9. Ne1 {[%clk 0:03:01.9]} 9... Kh8
{[%clk 0:02:55.2]} 10. h3 {[%clk 0:03:00.6]} 10... f6 {[%clk 0:02:55]} 11. Nd3
{[%clk 0:02:59.5]} 11... Be6 {[%clk 0:02:55.4]} 12. f4 {[%clk 0:02:59.2]} 12...
Ne7 {[%clk 0:02:30]} 13. f5 {[%clk 0:02:59]} 13... Bg8 {[%clk 0:02:28.8]} 14. g4
{[%clk 0:02:59]} 14... c5 {[%clk 0:02:28.6]} 15. Rf3 {[%clk 0:02:58.4]} 15... c4
{[%clk 0:02:27.7]} 16. Nf2 {[%clk 0:02:58.3]} 16... Nc6 {[%clk 0:02:24.7]} 17.
h4 {[%clk 0:02:55.5]} 17... Be7 {[%clk 0:02:23.5]} 18. Rg3 {[%clk 0:02:54.8]}
18... Rc8 {[%clk 0:02:01.9]} 19. Kh2 {[%clk 0:02:54.3]} 19... Qe8 {[%clk
0:01:54.8]} 20. Bf3 {[%clk 0:02:49.6]} 20... g5 {[%clk 0:01:44.5]} 21. fxg6
{[%clk 0:02:44.1]} 21... hxg6 {[%clk 0:01:44.5]} 22. Bh6 {[%clk 0:02:36.1]}
22... Rf7 {[%clk 0:01:37.9]} 23. g5 {[%clk 0:02:33.2]} 23... fxg5 {[%clk
0:01:34.6]} 24. Bxg5 {[%clk 0:02:33.3]} 24... Bxg5 {[%clk 0:01:32.7]} 25. hxg5
{[%clk 0:02:33.4]} 25... Rh7+ {[%clk 0:01:32.7]} 26. Kg2 {[%clk 0:02:32.9]}
26... Be6 {[%clk 0:01:30.7]} 27. Qd2 {[%clk 0:02:25.3]} 27... Kg7 {[%clk
0:01:28.1]} 28. Rh1 {[%clk 0:02:24.4]} 28... Rxh1 {[%clk 0:01:27.3]} 29. Nxh1
{[%clk 0:02:24.6]} 29... Qh8 {[%clk 0:01:19.8]} 30. Nf2 {[%clk 0:02:24.5]} 30...
Qh4 {[%clk 0:01:13.8]} 31. Bg4 {[%clk 0:02:13.6]} 31... Bxg4 {[%clk 0:01:13.4]}
32. Rxg4 {[%clk 0:02:13]} 32... Qh5 {[%clk 0:01:13.4]} 33. Rg3 {[%clk 0:02:12]}
33... Rf8 {[%clk 0:00:58.6]} 34. Ng4 {[%clk 0:02:08.9]} 34... Rf4 {[%clk
0:00:48.5]} 35. Nf6 {[%clk 0:02:02.3]} 35... Qh4 {[%clk 0:00:30.2]} 36. e3
{[%clk 0:01:59.9]} 36... Rxe4 {[%clk 0:00:27.1]} 37. Nxe4 {[%clk 0:01:52.7]}
37... Qxe4+ {[%clk 0:00:26.8]} 38. Kg1 {[%clk 0:01:50.3]} 38... d3 {[%clk
0:00:24.2]} 39. cxd3 {[%clk 0:01:45.9]} 39... cxd3 {[%clk 0:00:24.6]} 40. Qf2
{[%clk 0:01:45.3]} 40... Qf5 {[%clk 0:00:21.3]} 41. e4 {[%clk 0:01:43.4]} 41...
Qxe4 {[%clk 0:00:13.4]} 42. Qf6+ {[%clk 0:01:43.2]} 42... Kg8 {[%clk 0:00:13.6]}
43. Rf3 {[%clk 0:01:35.7]} 43... Qe1+ {[%clk 0:00:07.3]} 44. Kg2 {[%clk
0:01:35.1]} 44... Qe2+ {[%clk 0:00:07.8]} 45. Kg3 {[%clk 0:01:31.2]} 45... Qe1+
{[%clk 0:00:08]} 46. Rf2 {[%clk 0:01:30]} 46... Qe3+ {[%clk 0:00:07.6]} 47. Kh2
{[%clk 0:01:27.3]} 47... Qc5 {[%clk 0:00:01.2]} 48. Qxg6+ {[%clk 0:01:22.5]}
48... Kh8 {[%clk 0:00:01.4]} 49. Qe8+ {[%clk 0:01:11]} 49... Kg7 {[%clk
0:00:01.7]} 50. Rf7+ {[%clk 0:01:09.9]} 50... Kg6 {[%clk 0:00:02.1]} 51. Qe6+
{[%clk 0:01:09.4]} 51... Kh5 {[%clk 0:00:01.9]} 52. Qh6+ {[%clk 0:01:00.3]}
52... Kg4 {[%clk 0:00:02.1]} 53. Qh3+ {[%clk 0:01:00]} 53... Kxg5 {[%clk
0:00:02.7]} 54. Rf5+ {[%clk 0:00:59.6]} 54... Kg6 {[%clk 0:00:03.1]} 55. Qh5+
{[%clk 0:00:59.9]} 55... Kg7 {[%clk 0:00:04]} 56. Rf7+ {[%clk 0:01:00.4]} 56...
Kg8 {[%clk 0:00:04.6]} 57. Qh7# {[%clk 0:01:01]} 1-0

[Event "Early-Titled-Tuesday-Blitz-March-26-2024"]
[Site "Chess.com"]
[Date "2024.03.26"]
[Round "2"]
[White "Firouzja2003"]
[Black "SharapovEvgeny"]
[Result "1-0"]
[WhiteElo "3074"]
[BlackElo "2561"]
[TimeControl "180+1"]
[EndTime "8:17:43 PDT"]
[Termination "Firouzja2003 won by resignation"]

1. Nf3 {[%clk 0:02:56.3]} 1... c5 {[%clk 0:02:59.8]} 2. g3 {[%clk 0:02:57.2]}
2... Nc6 {[%clk 0:02:59.5]} 3. Bg2 {[%clk 0:02:58.1]} 3... e5 {[%clk 0:02:59.7]}
4. O-O {[%clk 0:02:59]} 4... g6 {[%clk 0:03:00.3]} 5. d3 {[%clk 0:02:56.1]} 5...
Bg7 {[%clk 0:03:00.5]} 6. c4 {[%clk 0:02:56.3]} 6... Nge7 {[%clk 0:02:59.7]} 7.
Nc3 {[%clk 0:02:56.8]} 7... d6 {[%clk 0:02:59.8]} 8. a3 {[%clk 0:02:57.2]} 8...
a5 {[%clk 0:02:59.6]} 9. Rb1 {[%clk 0:02:57.5]} 9... O-O {[%clk 0:02:59.3]} 10.
Bd2 {[%clk 0:02:57.2]} 10... Rb8 {[%clk 0:02:59.3]} 11. Ne1 {[%clk 0:02:52.7]}
11... Be6 {[%clk 0:02:58.8]} 12. Nd5 {[%clk 0:02:50.8]} 12... b5 {[%clk
0:02:57.9]} 13. Nc2 {[%clk 0:02:50.9]} 13... b4 {[%clk 0:02:56.2]} 14. axb4
{[%clk 0:02:50.9]} 14... Nxb4 {[%clk 0:02:53.6]} 15. Ncxb4 {[%clk 0:02:48.3]}
15... axb4 {[%clk 0:02:52.9]} 16. Ne3 {[%clk 0:02:36.4]} 16... f5 {[%clk
0:02:45.1]} 17. Ra1 {[%clk 0:02:36.7]} 17... f4 {[%clk 0:02:44.9]} 18. Nd5
{[%clk 0:02:36.7]} 18... Nxd5 {[%clk 0:02:44.7]} 19. cxd5 {[%clk 0:02:37.1]}
19... Bg4 {[%clk 0:02:39.7]} 20. Be4 {[%clk 0:02:19.1]} 20... Ra8 {[%clk
0:02:33.8]} 21. f3 {[%clk 0:02:18.9]} 21... Bd7 {[%clk 0:02:29.7]} 22. Kg2
{[%clk 0:02:14.9]} 22... g5 {[%clk 0:02:21.4]} 23. Qc2 {[%clk 0:01:34.2]} 23...
Qb6 {[%clk 0:02:14.1]} 24. g4 {[%clk 0:01:22.3]} 24... Bf6 {[%clk 0:02:07.7]}
25. d4 {[%clk 0:01:07.6]} 25... h6 {[%clk 0:01:31.9]} 26. dxc5 {[%clk
0:01:00.5]} 26... Qxc5 {[%clk 0:01:31.1]} 27. Qxc5 {[%clk 0:00:51.2]} 27... dxc5
{[%clk 0:01:31]} 28. d6 {[%clk 0:00:51.8]} 28... Rxa1 {[%clk 0:01:25.9]} 29.
Rxa1 {[%clk 0:00:52.7]} 29... Rd8 {[%clk 0:01:18.8]} 30. Ra5 {[%clk 0:00:52.4]}
30... Be6 {[%clk 0:01:07]} 31. Rxc5 {[%clk 0:00:51.9]} 31... Rxd6 {[%clk
0:01:06.8]} 32. Bxb4 {[%clk 0:00:52.1]} 32... Rb6 {[%clk 0:01:04.6]} 33. Bc3
{[%clk 0:00:52]} 33... Bf7 {[%clk 0:00:58.1]} 34. b4 {[%clk 0:00:46.5]} 34...
Be7 {[%clk 0:00:56.4]} 35. Rc8+ {[%clk 0:00:45]} 35... Bf8 {[%clk 0:00:55.8]}
36. Bxe5 {[%clk 0:00:44.7]} 36... Be6 {[%clk 0:00:52.5]} 37. Rc7 {[%clk
0:00:23.6]} 37... Bf7 {[%clk 0:00:45.8]} 38. Rc8 {[%clk 0:00:16.1]} 38... Be6
{[%clk 0:00:45.3]} 39. Ra8 {[%clk 0:00:16.4]} 39... Kf7 {[%clk 0:00:41.9]} 40.
Ra7+ {[%clk 0:00:16.4]} 40... Be7 {[%clk 0:00:40.3]} 41. Bd4 {[%clk 0:00:16.2]}
41... Rd6 {[%clk 0:00:34.3]} 42. Bc5 {[%clk 0:00:16.2]} 42... Rd7 {[%clk
0:00:34.9]} 43. Rxd7 {[%clk 0:00:15.5]} 43... Bxd7 {[%clk 0:00:35.1]} 44. Bxe7
{[%clk 0:00:15]} 44... Kxe7 {[%clk 0:00:35.4]} 45. Kf2 {[%clk 0:00:14.5]} 45...
Kd6 {[%clk 0:00:35.4]} 46. e3 {[%clk 0:00:13.8]} 46... fxe3+ {[%clk 0:00:32]}
47. Kxe3 {[%clk 0:00:14.7]} 47... Ke5 {[%clk 0:00:31.8]} 48. Bd3 {[%clk
0:00:14.9]} 48... Bc6 {[%clk 0:00:31.6]} 49. b5 {[%clk 0:00:15]} 49... Bb7
{[%clk 0:00:32.1]} 50. Be4 {[%clk 0:00:14.3]} 50... Bc8 {[%clk 0:00:32.4]} 51.
b6 {[%clk 0:00:14.4]} 1-0

[Event "Early-Titled-Tuesday-Blitz-March-26-2024"]
[Site "Chess.com"]
[Date "2024.03.26"]
[Round "2"]
[White "DCacheiro"]
[Black "Marielchessy"]
[Result "1-0"]
[WhiteElo "2523"]
[BlackElo "2286"]
[TimeControl "180+1"]
[EndTime "8:17:43 PDT"]
[Termination "DCacheiro won by resignation"]

1. e4 {[%clk 0:03:00.9]} 1... c5 {[%clk 0:02:59.3]} 2. Nf3 {[%clk 0:03:01.1]}
2... d6 {[%clk 0:02:59.2]} 3. d4 {[%clk 0:03:01.7]} 3... cxd4 {[%clk 0:02:59.8]}
4. Nxd4 {[%clk 0:03:02.6]} 4... Nf6 {[%clk 0:03:00.1]} 5. Nc3 {[%clk 0:03:03]}
5... a6 {[%clk 0:03:00.7]} 6. Bg5 {[%clk 0:03:02.2]} 6... e6 {[%clk 0:03:01]} 7.
f4 {[%clk 0:03:02.1]} 7... Be7 {[%clk 0:03:01.5]} 8. Qf3 {[%clk 0:03:02.1]} 8...
Qc7 {[%clk 0:03:02.1]} 9. O-O-O {[%clk 0:03:02.4]} 9... Nbd7 {[%clk 0:03:02.3]}
10. f5 {[%clk 0:03:02.4]} 10... Ne5 {[%clk 0:03:01.5]} 11. Qh3 {[%clk 0:03:02]}
11... exf5 {[%clk 0:02:58]} 12. Nxf5 {[%clk 0:02:40.5]} 12... Bxf5 {[%clk
0:02:56.7]} 13. Qxf5 {[%clk 0:02:35.4]} 13... Rc8 {[%clk 0:02:54.5]} 14. Kb1
{[%clk 0:02:20.5]} 14... O-O {[%clk 0:02:35.4]} 15. Bxf6 {[%clk 0:02:16.5]}
15... Bxf6 {[%clk 0:02:33.9]} 16. Bd3 {[%clk 0:02:15.6]} 16... Nxd3 {[%clk
0:02:31]} 17. Rxd3 {[%clk 0:02:16.5]} 17... Bxc3 {[%clk 0:02:26.7]} 18. Rxc3
{[%clk 0:02:14.4]} 18... Qb8 {[%clk 0:02:26.8]} 19. Rd3 {[%clk 0:02:05.1]} 19...
Rc5 {[%clk 0:02:21.5]} 20. Qf4 {[%clk 0:02:02.1]} 20... Rfc8 {[%clk 0:02:11.7]}
21. c3 {[%clk 0:01:54.7]} 21... Re5 {[%clk 0:02:05.2]} 22. Rhd1 {[%clk
0:01:54.1]} 22... Rce8 {[%clk 0:01:52.7]} 23. Rxd6 {[%clk 0:01:41.5]} 23... Rxe4
{[%clk 0:01:52]} 24. Qxe4 {[%clk 0:01:42.4]} 24... Rxe4 {[%clk 0:01:51.2]} 25.
Rd8+ {[%clk 0:01:42.7]} 25... Re8 {[%clk 0:01:51.1]} 26. Rxb8 {[%clk 0:01:43.4]}
26... Rxb8 {[%clk 0:01:50.9]} 27. Rd7 {[%clk 0:01:44.1]} 27... Kf8 {[%clk
0:01:49.3]} 28. Kc2 {[%clk 0:01:42.7]} 28... Ke8 {[%clk 0:01:49.4]} 29. Rc7
{[%clk 0:01:41.6]} 29... h5 {[%clk 0:01:44.5]} 30. a4 {[%clk 0:01:40]} 30... g5
{[%clk 0:01:39.5]} 31. b4 {[%clk 0:01:38.8]} 31... g4 {[%clk 0:01:33.9]} 32. c4
{[%clk 0:01:28.2]} 32... h4 {[%clk 0:01:33]} 33. Kc3 {[%clk 0:01:23.4]} 33...
Kf8 {[%clk 0:01:27.8]} 34. c5 {[%clk 0:01:16.9]} 34... Kg7 {[%clk 0:01:26.6]}
35. b5 {[%clk 0:01:14.3]} 35... axb5 {[%clk 0:01:25.9]} 36. axb5 {[%clk
0:01:15.2]} 36... Kf6 {[%clk 0:01:26.2]} 37. Kc4 {[%clk 0:01:09.3]} 37... Ke6
{[%clk 0:01:22.2]} 38. b6 {[%clk 0:01:02.5]} 38... h3 {[%clk 0:01:19.4]} 39.
gxh3 {[%clk 0:01:01.5]} 39... gxh3 {[%clk 0:01:18.9]} 40. Kb5 {[%clk 0:01:00.4]}
40... Rg8 {[%clk 0:00:19.1]} 41. Rxb7 {[%clk 0:00:57.9]} 41... Rg2 {[%clk
0:00:18.8]} 42. Rb8 {[%clk 0:00:51.9]} 42... Rxh2 {[%clk 0:00:14.2]} 43. Rh8
{[%clk 0:00:50.7]} 43... Kd5 {[%clk 0:00:07.2]} 44. Rh5+ {[%clk 0:00:49.2]}
44... Kd4 {[%clk 0:00:06]} 45. b7 {[%clk 0:00:42.8]} 45... Rb2+ {[%clk
0:00:05.9]} 46. Kc6 {[%clk 0:00:42.7]} 46... h2 {[%clk 0:00:06.7]} 47. Rxh2
{[%clk 0:00:40.5]} 1-0

[Event "Early-Titled-Tuesday-Blitz-March-26-2024"]
[Site "Chess.com"]
[Date "2024.03.26"]
[Round "2"]
[White "JERO-8914"]
[Black "1800_strength"]
[Result "0-1"]
[WhiteElo "2429"]
[BlackElo "2810"]
[TimeControl "180+1"]
[EndTime "8:17:44 PDT"]
[Termination "1800_strength won by resignation"]

1. c4 {[%clk 0:03:00]} 1... b6 {[%clk 0:02:57.8]} 2. d4 {[%clk 0:02:59.3]} 2...
Bb7 {[%clk 0:02:58.7]} 3. Nc3 {[%clk 0:02:58.3]} 3... e6 {[%clk 0:02:58.9]} 4.
a3 {[%clk 0:02:58.1]} 4... f5 {[%clk 0:02:57.9]} 5. Nf3 {[%clk 0:02:54]} 5...
Nf6 {[%clk 0:02:58.4]} 6. g3 {[%clk 0:02:53.9]} 6... g6 {[%clk 0:02:47.7]} 7.
Bg2 {[%clk 0:02:54]} 7... Bg7 {[%clk 0:02:48.4]} 8. O-O {[%clk 0:02:54.2]} 8...
O-O {[%clk 0:02:49.1]} 9. d5 {[%clk 0:02:54.5]} 9... Na6 {[%clk 0:02:42.9]} 10.
Nd4 {[%clk 0:02:52.7]} 10... e5 {[%clk 0:02:40]} 11. Nc2 {[%clk 0:02:52.4]}
11... d6 {[%clk 0:02:33.8]} 12. b4 {[%clk 0:02:50.2]} 12... e4 {[%clk
0:02:28.9]} 13. Be3 {[%clk 0:02:47.6]} 13... Ng4 {[%clk 0:02:28]} 14. Bd4 {[%clk
0:02:47.2]} 14... Ne5 {[%clk 0:02:28.7]} 15. Ne3 {[%clk 0:02:39.4]} 15... Qe7
{[%clk 0:01:58.6]} 16. f3 {[%clk 0:02:23.6]} 16... exf3 {[%clk 0:01:27]} 17.
exf3 {[%clk 0:02:23.4]} 17... f4 {[%clk 0:01:25.6]} 18. gxf4 {[%clk 0:01:45.9]}
18... Rxf4 {[%clk 0:01:26.5]} 19. Ne2 {[%clk 0:01:45.8]} 19... Rh4 {[%clk
0:00:44.3]} 20. Qd2 {[%clk 0:01:04.2]} 20... Rf8 {[%clk 0:00:40.4]} 21. Rae1
{[%clk 0:00:48.5]} 21... Nb8 {[%clk 0:00:29.7]} 22. f4 {[%clk 0:00:33.5]} 22...
Ng4 {[%clk 0:00:25.6]} 23. Ng3 {[%clk 0:00:20.9]} 23... Bxd4 {[%clk 0:00:17]}
24. Qxd4 {[%clk 0:00:19.6]} 24... Qf6 {[%clk 0:00:17.7]} 25. Qxf6 {[%clk
0:00:14.4]} 25... Nxf6 {[%clk 0:00:18.6]} 26. f5 {[%clk 0:00:13.9]} 26... Nbd7
{[%clk 0:00:19.1]} 27. fxg6 {[%clk 0:00:14]} 27... hxg6 {[%clk 0:00:20]} 28. Nc2
{[%clk 0:00:12.5]} 28... Ne5 {[%clk 0:00:20.1]} 29. c5 {[%clk 0:00:12.3]} 29...
bxc5 {[%clk 0:00:20.2]} 30. bxc5 {[%clk 0:00:13.2]} 30... Bxd5 {[%clk
0:00:20.6]} 31. cxd6 {[%clk 0:00:13.4]} 31... cxd6 {[%clk 0:00:20.8]} 32. Ne3
{[%clk 0:00:12.8]} 32... Bxg2 {[%clk 0:00:20.8]} 33. Nxg2 {[%clk 0:00:13.1]}
33... Rh7 {[%clk 0:00:19.2]} 34. Rd1 {[%clk 0:00:14]} 34... Nfg4 {[%clk
0:00:19.3]} 35. Rxd6 {[%clk 0:00:13.6]} 35... Nf3+ {[%clk 0:00:17.9]} 36. Rxf3
{[%clk 0:00:12.7]} 36... Rxf3 {[%clk 0:00:18.8]} 37. Rxg6+ {[%clk 0:00:13.2]}
37... Rg7 {[%clk 0:00:18.5]} 38. Rxg7+ {[%clk 0:00:12.8]} 38... Kxg7 {[%clk
0:00:19.4]} 39. Nh5+ {[%clk 0:00:12.4]} 39... Kh6 {[%clk 0:00:19.3]} 40. Ng3
{[%clk 0:00:11.9]} 40... Rxa3 {[%clk 0:00:19.2]} 41. Nf5+ {[%clk 0:00:11.6]}
41... Kg5 {[%clk 0:00:18.6]} 42. Nd6 {[%clk 0:00:12.1]} 42... Ra1+ {[%clk
0:00:18.5]} 0-1

[Event "Early-Titled-Tuesday-Blitz-March-26-2024"]
[Site "Chess.com"]
[Date "2024.03.26"]
[Round "2"]
[White "noblerone"]
[Black "alekroth65"]
[Result "1-0"]
[WhiteElo "2568"]
[BlackElo "2385"]
[TimeControl "180+1"]
[EndTime "8:17:44 PDT"]
[Termination "noblerone won on time"]

1. d4 {[%clk 0:03:00.9]} 1... d6 {[%clk 0:02:59.2]} 2. c4 {[%clk 0:03:00.4]}
2... e5 {[%clk 0:02:57.6]} 3. Nf3 {[%clk 0:02:56.7]} 3... Nd7 {[%clk 0:02:55.6]}
4. g3 {[%clk 0:02:55]} 4... Ngf6 {[%clk 0:02:55.5]} 5. Bg2 {[%clk 0:02:55.3]}
5... g6 {[%clk 0:02:55.8]} 6. O-O {[%clk 0:02:54.2]} 6... Bg7 {[%clk 0:02:56.3]}
7. Nc3 {[%clk 0:02:54.2]} 7... O-O {[%clk 0:02:56.1]} 8. Bg5 {[%clk 0:02:54.4]}
8... h6 {[%clk 0:02:44.5]} 9. Bxf6 {[%clk 0:02:54.3]} 9... Qxf6 {[%clk
0:02:40.5]} 10. e3 {[%clk 0:02:44.7]} 10... c6 {[%clk 0:02:38]} 11. h3 {[%clk
0:02:36]} 11... exd4 {[%clk 0:02:23.7]} 12. Nxd4 {[%clk 0:02:26.8]} 12... Nc5
{[%clk 0:02:17.4]} 13. Nde2 {[%clk 0:02:17.8]} 13... Re8 {[%clk 0:02:08.1]} 14.
b4 {[%clk 0:01:31]} 14... Ne6 {[%clk 0:02:07.6]} 15. b5 {[%clk 0:01:30.9]} 15...
Bd7 {[%clk 0:01:37.9]} 16. Qxd6 {[%clk 0:01:20]} 16... Red8 {[%clk 0:01:37.7]}
17. Qa3 {[%clk 0:00:52.6]} 17... a6 {[%clk 0:01:18.9]} 18. bxc6 {[%clk
0:00:42.2]} 18... Bxc6 {[%clk 0:01:18.1]} 19. Bxc6 {[%clk 0:00:40.1]} 19... bxc6
{[%clk 0:01:17.4]} 20. Rad1 {[%clk 0:00:40.5]} 20... Qf5 {[%clk 0:00:52.4]} 21.
Kg2 {[%clk 0:00:21.7]} 21... Ng5 {[%clk 0:00:50.8]} 22. Nf4 {[%clk 0:00:20]}
22... Bxc3 {[%clk 0:00:49.3]} 23. Qxc3 {[%clk 0:00:19.3]} 23... Rxd1 {[%clk
0:00:40.1]} 24. Rxd1 {[%clk 0:00:19.2]} 24... Qe4+ {[%clk 0:00:40.3]} 25. Kf1
{[%clk 0:00:17.8]} 25... Qh1+ {[%clk 0:00:37.6]} 26. Ke2 {[%clk 0:00:17.9]}
26... Qf3+ {[%clk 0:00:38.1]} 27. Ke1 {[%clk 0:00:16.9]} 27... Ne4 {[%clk
0:00:32.7]} 28. Qc2 {[%clk 0:00:15.5]} 28... Re8 {[%clk 0:00:21.1]} 29. Rd4
{[%clk 0:00:11.2]} 29... Nxg3 {[%clk 0:00:16]} 30. Qd1 {[%clk 0:00:06.6]} 30...
Qh1+ {[%clk 0:00:08.7]} 31. Kd2 {[%clk 0:00:06.7]} 31... Ne4+ {[%clk 0:00:07.5]}
32. Kc2 {[%clk 0:00:04.3]} 32... Qxd1+ {[%clk 0:00:04.6]} 33. Rxd1 {[%clk
0:00:05.2]} 33... Nxf2 {[%clk 0:00:04]} 34. Rd7 {[%clk 0:00:06.1]} 34... Rxe3
{[%clk 0:00:01.2]} 35. Rd8+ {[%clk 0:00:06.7]} 1-0